[Event "Titled Tuesday Blitz April 4 Late 2023"]
[White "feuervogel1000000"]
[Black "Romanchuk, Viktor"]
[BlackFideId "14109271"]
[WhiteElo "2295"]
[BlackElo "2242"]
[Result "0-1"]
[Round "08"]
[TimeControl "180+2"]
[Date "2023.04.04"]
[WhiteClock "0:00:24"]
[BlackClock "0:00:03"]

1. e4 {[%clk 0:03:00]}  c6 {[%clk 0:02:57]} 2. d4 {[%clk 0:03:00]}  d5 {[%clk 0:02:57]} 3. e5 {[%clk 0:03:01]}  c5 {[%clk 0:02:57]} 4. dxc5 {[%clk 0:03:00]}  e6 {[%clk 0:02:56]} 5. a3 {[%clk 0:02:59]}  Nc6 {[%clk 0:02:53]} 6. Nf3 {[%clk 0:02:58]}  Bxc5 {[%clk 0:02:52]} 7. b4 {[%clk 0:02:57]}  Bb6 {[%clk 0:02:52]} 8. Bb2 {[%clk 0:02:57]}  Nge7 {[%clk 0:02:52]} 9. Bd3 {[%clk 0:02:57]}  Ng6 {[%clk 0:02:49]} 10. O-O {[%clk 0:02:55]}  Nf4 {[%clk 0:02:49]} 11. Re1 {[%clk 0:02:51]}  Nxd3 {[%clk 0:02:38]} 12. Qxd3 {[%clk 0:02:52]}  O-O {[%clk 0:02:37]} 13. c4 {[%clk 0:02:52]}  dxc4 {[%clk 0:02:22]} 14. Qxc4 {[%clk 0:02:53]}  Bd7 {[%clk 0:02:21]} 15. Nc3 {[%clk 0:02:50]}  Ne7 {[%clk 0:02:21]} 16. Qg4 {[%clk 0:02:49]}  Bc6 {[%clk 0:02:15]} 17. Rad1 {[%clk 0:02:48]}  Qe8 {[%clk 0:02:13]} 18. Ne4 {[%clk 0:02:39]}  Bxe4 {[%clk 0:02:06]} 19. Rxe4 {[%clk 0:02:29]}  Rd8 {[%clk 0:02:04]} 20. Rde1 {[%clk 0:02:28]}  Qa4 {[%clk 0:01:53]} 21. Qg5 {[%clk 0:02:22]}  Ng6 {[%clk 0:01:46]} 22. h4 {[%clk 0:02:21]}  h6 {[%clk 0:01:42]} 23. Qg3 {[%clk 0:02:18]}  Rd1 {[%clk 0:01:36]} 24. h5 {[%clk 0:02:17]}  Ne7 {[%clk 0:01:34]} 25. Nh4 {[%clk 0:01:36]}  Qc2 {[%clk 0:01:05]} 26. Rxd1 {[%clk 0:01:29]}  Qxd1+ {[%clk 0:01:02]} 27. Kh2 {[%clk 0:01:29]}  Qxh5 {[%clk 0:01:02]} 28. Qh3 {[%clk 0:01:26]}  Nf5 {[%clk 0:00:26]} 29. Nxf5 {[%clk 0:01:19]}  Qxh3+ {[%clk 0:00:26]} 30. Kxh3 {[%clk 0:01:18]}  exf5 {[%clk 0:00:27]} 31. Rf4 {[%clk 0:01:12]}  g6 {[%clk 0:00:26]} 32. g4 {[%clk 0:01:12]}  fxg4+ {[%clk 0:00:25]} 33. Kxg4 {[%clk 0:01:13]}  Rd8 {[%clk 0:00:20]} 34. e6 {[%clk 0:01:13]}  f5+ {[%clk 0:00:19]} 35. Kh3 {[%clk 0:01:12]}  Re8 {[%clk 0:00:20]} 36. Rh4 {[%clk 0:01:10]}  h5 {[%clk 0:00:18]} 37. Rc4 {[%clk 0:01:06]}  Rxe6 {[%clk 0:00:17]} 38. Rc8+ {[%clk 0:01:06]}  Kf7 {[%clk 0:00:18]} 39. Rb8 {[%clk 0:01:05]}  Re7 {[%clk 0:00:17]} 40. Kg3 {[%clk 0:01:04]}  g5 {[%clk 0:00:17]} 41. Rh8 {[%clk 0:01:02]}  h4+ {[%clk 0:00:17]} 42. Kf3 {[%clk 0:01:02]}  Rc7 {[%clk 0:00:13]} 43. Rh7+ {[%clk 0:00:42]}  Ke6 {[%clk 0:00:13]} 44. Rh6+ {[%clk 0:00:42]}  Kd5 {[%clk 0:00:12]} 45. Rf6 {[%clk 0:00:40]}  g4+ {[%clk 0:00:10]} 46. Kg2 {[%clk 0:00:39]}  h3+ {[%clk 0:00:09]} 47. Kg3 {[%clk 0:00:39]}  Ke4 {[%clk 0:00:08]} 48. Re6+ {[%clk 0:00:38]}  Kd3 {[%clk 0:00:08]} 49. Rf6 {[%clk 0:00:38]}  Rc2 {[%clk 0:00:07]} 50. Rxf5 {[%clk 0:00:38]}  Rxb2 {[%clk 0:00:07]} 51. Kxg4 {[%clk 0:00:37]}  Rxf2 {[%clk 0:00:06]} 52. Rh5 {[%clk 0:00:35]}  h2 {[%clk 0:00:06]} 53. a4 {[%clk 0:00:34]}  Be3 {[%clk 0:00:05]} 54. Kg3 {[%clk 0:00:34]}  Re2 {[%clk 0:00:04]} 55. Kf3 {[%clk 0:00:34]}  Rf2+ {[%clk 0:00:04]} 56. Kg3 {[%clk 0:00:34]}  Rb2 {[%clk 0:00:05]} 57. Kf3 {[%clk 0:00:34]}  Bg1 {[%clk 0:00:05]} 58. Rd5+ {[%clk 0:00:33]}  Kc4 {[%clk 0:00:05]} 59. Rh5 {[%clk 0:00:34]}  Kxb4 {[%clk 0:00:05]} 60. Rh4+ {[%clk 0:00:35]}  Ka5 {[%clk 0:00:05]} 61. Kg3 {[%clk 0:00:28]}  Rb4 {[%clk 0:00:04]} 62. Rh5+ {[%clk 0:00:26]}  Kxa4 {[%clk 0:00:05]} 63. Kg2 {[%clk 0:00:27]}  a5 {[%clk 0:00:04]} 64. Kh1 {[%clk 0:00:28]}  b5 {[%clk 0:00:04]} 65. Rg5 {[%clk 0:00:28]}  Rc4 {[%clk 0:00:04]} 66. Rg2 {[%clk 0:00:29]}  b4 {[%clk 0:00:04]} 67. Rc2 {[%clk 0:00:29]}  Kb5 {[%clk 0:00:02]} 68. Rb2 {[%clk 0:00:27]}  Bc5 {[%clk 0:00:02]} 69. Kxh2 {[%clk 0:00:24]}  a4 {[%clk 0:00:03]} 70. Kg3 {[%clk 0:00:24]}  a3 {[%clk 0:00:04]} 71. Ra2 {[%clk 0:00:23]}  b3 {[%clk 0:00:03]} 72. Kf3 {[%clk 0:00:24]}  bxa2 {[%clk 0:00:03]} 0-1


[Site "https://www.chess.com"]

[Event "Titled Tuesday Blitz April 4 Late 2023"]
[White "Djordjevic, Dejan N"]
[Black "Fiorito, Francisco"]
[WhiteFideId "913316"]
[BlackFideId "180165"]
[WhiteElo "2261"]
[BlackElo "2341"]
[Result "0-1"]
[Round "08"]
[TimeControl "180+2"]
[Date "2023.04.04"]
[WhiteClock "0:00:01"]
[BlackClock "0:00:51"]

1. e4 {[%clk 0:02:19]}  e5 {[%clk 0:02:58]} 2. Nf3 {[%clk 0:02:18]}  Nf6 {[%clk 0:02:56]} 3. Nxe5 {[%clk 0:02:17]}  d6 {[%clk 0:02:56]} 4. Nf3 {[%clk 0:02:18]}  Nxe4 {[%clk 0:02:57]} 5. d4 {[%clk 0:02:18]}  d5 {[%clk 0:02:56]} 6. Bd3 {[%clk 0:02:19]}  Be7 {[%clk 0:02:55]} 7. O-O {[%clk 0:02:19]}  Nc6 {[%clk 0:02:56]} 8. c4 {[%clk 0:02:19]}  Nb4 {[%clk 0:02:55]} 9. Be2 {[%clk 0:02:12]}  O-O {[%clk 0:02:54]} 10. Nc3 {[%clk 0:02:09]}  Bf5 {[%clk 0:02:37]} 11. Bf4 {[%clk 0:01:58]}  Nxc3 {[%clk 0:02:17]} 12. bxc3 {[%clk 0:01:57]}  Nc6 {[%clk 0:02:16]} 13. cxd5 {[%clk 0:01:50]}  Qxd5 {[%clk 0:02:17]} 14. Qb3 {[%clk 0:01:50]}  Qxb3 {[%clk 0:02:06]} 15. axb3 {[%clk 0:01:50]}  Bd6 {[%clk 0:02:07]} 16. Bg3 {[%clk 0:01:39]}  a6 {[%clk 0:02:05]} 17. Rfe1 {[%clk 0:01:34]}  Rfe8 {[%clk 0:02:04]} 18. Bc4 {[%clk 0:01:31]}  Rad8 {[%clk 0:01:53]} 19. Ng5 {[%clk 0:01:26]}  Bg6 {[%clk 0:01:53]} 20. b4 {[%clk 0:01:13]}  h6 {[%clk 0:01:50]} 21. Nf3 {[%clk 0:01:09]}  Be4 {[%clk 0:01:41]} 22. Nd2 {[%clk 0:01:07]}  Bf5 {[%clk 0:01:40]} 23. Bd5 {[%clk 0:01:02]}  Bxg3 {[%clk 0:01:38]} 24. Bxc6 {[%clk 0:01:02]}  Bxf2+ {[%clk 0:01:35]} 25. Kxf2 {[%clk 0:01:01]}  Rxe1 {[%clk 0:01:33]} 26. Rxe1 {[%clk 0:01:00]}  bxc6 {[%clk 0:01:33]} 27. Re7 {[%clk 0:00:51]}  Rd7 {[%clk 0:01:31]} 28. Re8+ {[%clk 0:00:49]}  Kh7 {[%clk 0:01:31]} 29. Re5 {[%clk 0:00:49]}  Rd5 {[%clk 0:01:28]} 30. Re7 {[%clk 0:00:48]}  Rd7 {[%clk 0:01:28]} 31. Re5 {[%clk 0:00:30]}  Kg6 {[%clk 0:01:13]} 32. Ke3 {[%clk 0:00:27]}  Rd6 {[%clk 0:01:11]} 33. Ra5 {[%clk 0:00:27]}  Re6+ {[%clk 0:01:09]} 34. Kf2 {[%clk 0:00:26]}  Bd3 {[%clk 0:01:09]} 35. Nf3 {[%clk 0:00:24]}  f6 {[%clk 0:01:09]} 36. h4 {[%clk 0:00:22]}  Kf7 {[%clk 0:01:09]} 37. Rc5 {[%clk 0:00:21]}  Ke7 {[%clk 0:01:04]} 38. Ra5 {[%clk 0:00:18]}  Kd7 {[%clk 0:01:04]} 39. Ra1 {[%clk 0:00:18]}  Re2+ {[%clk 0:01:03]} 40. Kg3 {[%clk 0:00:17]}  Rc2 {[%clk 0:01:03]} 41. Ra3 {[%clk 0:00:17]}  g5 {[%clk 0:01:01]} 42. Ne1 {[%clk 0:00:17]}  Rd2 {[%clk 0:00:59]} 43. hxg5 {[%clk 0:00:16]}  hxg5 {[%clk 0:00:59]} 44. Kf3 {[%clk 0:00:15]}  Bc4 {[%clk 0:00:53]} 45. g3 {[%clk 0:00:12]}  f5 {[%clk 0:00:52]} 46. g4 {[%clk 0:00:09]}  f4 {[%clk 0:00:51]} 47. Ra5 {[%clk 0:00:04]}  Bd5+ {[%clk 0:00:50]} 48. Rxd5+ {[%clk 0:00:01]}  cxd5 {[%clk 0:00:51]} 0-1


[Site "https://www.chess.com"]

[Event "Titled Tuesday Blitz April 4 Late 2023"]
[White "Krasteva, Beloslava"]
[Black "Baskakov, Egor"]
[WhiteFideId "2922029"]
[BlackFideId "24197866"]
[WhiteElo "2187"]
[BlackElo "2212"]
[Result "0-1"]
[Round "08"]
[TimeControl "180+2"]
[Date "2023.04.04"]
[WhiteClock "0:00:03"]
[BlackClock "0:01:48"]

1. d4 {[%clk 0:03:00]}  Nf6 {[%clk 0:02:59]} 2. Bg5 {[%clk 0:03:00]}  e6 {[%clk 0:03:00]} 3. Nf3 {[%clk 0:02:56]}  d5 {[%clk 0:03:00]} 4. e3 {[%clk 0:02:56]}  Be7 {[%clk 0:03:01]} 5. Bd3 {[%clk 0:02:54]}  Ne4 {[%clk 0:03:01]} 6. Bf4 {[%clk 0:02:47]}  O-O {[%clk 0:03:00]} 7. Nbd2 {[%clk 0:02:46]}  f5 {[%clk 0:03:00]} 8. O-O {[%clk 0:02:43]}  c6 {[%clk 0:03:00]} 9. Ne1 {[%clk 0:02:16]}  g5 {[%clk 0:02:59]} 10. Be5 {[%clk 0:02:16]}  Nd7 {[%clk 0:02:58]} 11. f3 {[%clk 0:02:15]}  Nxd2 {[%clk 0:02:58]} 12. Qxd2 {[%clk 0:02:15]}  Nxe5 {[%clk 0:02:59]} 13. dxe5 {[%clk 0:02:16]}  Bd7 {[%clk 0:02:59]} 14. c4 {[%clk 0:02:07]}  a5 {[%clk 0:02:58]} 15. Nc2 {[%clk 0:02:01]}  Qb6 {[%clk 0:02:48]} 16. cxd5 {[%clk 0:01:55]}  cxd5 {[%clk 0:02:49]} 17. Nd4 {[%clk 0:01:54]}  Rac8 {[%clk 0:02:45]} 18. Rac1 {[%clk 0:01:49]}  a4 {[%clk 0:02:41]} 19. Kh1 {[%clk 0:01:47]}  Rxc1 {[%clk 0:02:25]} 20. Rxc1 {[%clk 0:01:46]}  Rc8 {[%clk 0:02:25]} 21. Rxc8+ {[%clk 0:01:44]}  Bxc8 {[%clk 0:02:26]} 22. Bb5 {[%clk 0:01:33]}  a3 {[%clk 0:02:19]} 23. Qc3 {[%clk 0:01:26]}  Qc5 {[%clk 0:02:15]} 24. Qxc5 {[%clk 0:01:16]}  Bxc5 {[%clk 0:02:15]} 25. bxa3 {[%clk 0:01:07]}  f4 {[%clk 0:02:09]} 26. Nc2 {[%clk 0:00:27]}  fxe3 {[%clk 0:02:09]} 27. a4 {[%clk 0:00:24]}  b6 {[%clk 0:02:09]} 28. g3 {[%clk 0:00:20]}  g4 {[%clk 0:02:06]} 29. Kg2 {[%clk 0:00:19]}  Bb7 {[%clk 0:02:05]} 30. fxg4 {[%clk 0:00:17]}  d4+ {[%clk 0:02:05]} 31. Kf1 {[%clk 0:00:17]}  Be4 {[%clk 0:02:01]} 32. Ne1 {[%clk 0:00:15]}  Bd5 {[%clk 0:01:55]} 33. Nd3 {[%clk 0:00:14]}  Ba3 {[%clk 0:01:53]} 34. Ke2 {[%clk 0:00:13]}  Bxa2 {[%clk 0:01:53]} 35. Nf4 {[%clk 0:00:10]}  Kf7 {[%clk 0:01:49]} 36. Kd3 {[%clk 0:00:08]}  Bc5 {[%clk 0:01:49]} 37. Bc4 {[%clk 0:00:04]}  Bb1+ {[%clk 0:01:50]} 38. Ke2 {[%clk 0:00:03]}  Bc2 {[%clk 0:01:48]} 0-1


[Site "https://www.chess.com"]

[Event "Titled Tuesday Blitz April 4 Late 2023"]
[White "Han, Yichen"]
[Black "LuckyMajky"]
[WhiteFideId "1054430"]
[WhiteElo "2342"]
[BlackElo "2461"]
[Result "1-0"]
[Round "08"]
[TimeControl "180+2"]
[Date "2023.04.04"]
[WhiteClock "0:01:40"]
[BlackClock "0:01:27"]

1. d4 {[%clk 0:02:59]}  Nf6 {[%clk 0:02:58]} 2. Nf3 {[%clk 0:02:59]}  c5 {[%clk 0:02:49]} 3. d5 {[%clk 0:02:58]}  b5 {[%clk 0:02:48]} 4. Bg5 {[%clk 0:02:56]}  Qb6 {[%clk 0:02:44]} 5. Bxf6 {[%clk 0:02:55]}  Qxf6 {[%clk 0:02:45]} 6. c3 {[%clk 0:02:54]}  d6 {[%clk 0:02:41]} 7. e4 {[%clk 0:02:54]}  a6 {[%clk 0:02:36]} 8. Nbd2 {[%clk 0:02:54]}  Bg4 {[%clk 0:02:35]} 9. a4 {[%clk 0:02:53]}  b4 {[%clk 0:02:31]} 10. cxb4 {[%clk 0:02:53]}  cxb4 {[%clk 0:02:31]} 11. Nc4 {[%clk 0:02:53]}  Bxf3 {[%clk 0:02:25]} 12. Qxf3 {[%clk 0:02:49]}  Qxf3 {[%clk 0:02:24]} 13. gxf3 {[%clk 0:02:50]}  Nd7 {[%clk 0:02:25]} 14. a5 {[%clk 0:02:48]}  Nc5 {[%clk 0:02:05]} 15. Nb6 {[%clk 0:02:38]}  Ra7 {[%clk 0:02:06]} 16. Rc1 {[%clk 0:02:38]}  g6 {[%clk 0:02:04]} 17. Rc4 {[%clk 0:02:35]}  b3 {[%clk 0:01:58]} 18. e5 {[%clk 0:02:34]}  Bg7 {[%clk 0:01:56]} 19. f4 {[%clk 0:02:25]}  O-O {[%clk 0:01:45]} 20. Bh3 {[%clk 0:02:24]}  Rd8 {[%clk 0:01:40]} 21. O-O {[%clk 0:02:20]}  g5 {[%clk 0:01:36]} 22. fxg5 {[%clk 0:01:42]}  Bxe5 {[%clk 0:01:34]} 23. Rb1 {[%clk 0:01:41]}  Kg7 {[%clk 0:01:27]} 24. f4 {[%clk 0:01:40]} 1-0


[Site "https://www.chess.com"]

[Event "Titled Tuesday Blitz April 4 Late 2023"]
[White "Jimenez Jimenez, Leandro"]
[Black "Kim, Sergey"]
[WhiteFideId "6415253"]
[BlackFideId "13700570"]
[WhiteElo "2263"]
[BlackElo "2528"]
[Result "1-0"]
[Round "08"]
[TimeControl "180+2"]
[Date "2023.04.04"]
[WhiteClock "0:00:30"]
[BlackClock "0:00:05"]

1. d4 {[%clk 0:03:00]}  Nf6 {[%clk 0:02:59]} 2. c4 {[%clk 0:03:01]}  g6 {[%clk 0:03:00]} 3. Nc3 {[%clk 0:03:00]}  Bg7 {[%clk 0:03:00]} 4. e4 {[%clk 0:03:01]}  d6 {[%clk 0:03:01]} 5. f3 {[%clk 0:03:01]}  O-O {[%clk 0:03:01]} 6. Be3 {[%clk 0:03:01]}  Nc6 {[%clk 0:03:01]} 7. Nge2 {[%clk 0:03:01]}  a6 {[%clk 0:03:02]} 8. Qd2 {[%clk 0:03:01]}  Rb8 {[%clk 0:03:02]} 9. Nc1 {[%clk 0:03:00]}  e5 {[%clk 0:03:02]} 10. d5 {[%clk 0:03:01]}  Nd4 {[%clk 0:03:02]} 11. Nb3 {[%clk 0:03:01]}  c5 {[%clk 0:03:02]} 12. dxc6 {[%clk 0:03:00]}  bxc6 {[%clk 0:03:02]} 13. Nxd4 {[%clk 0:02:58]}  exd4 {[%clk 0:03:02]} 14. Bxd4 {[%clk 0:02:59]}  d5 {[%clk 0:03:03]} 15. e5 {[%clk 0:02:57]}  Re8 {[%clk 0:03:02]} 16. Be2 {[%clk 0:02:56]}  Nd7 {[%clk 0:03:02]} 17. cxd5 {[%clk 0:02:52]}  cxd5 {[%clk 0:02:49]} 18. f4 {[%clk 0:02:47]}  Bh6 {[%clk 0:02:48]} 19. Be3 {[%clk 0:02:25]}  Nxe5 {[%clk 0:02:46]} 20. fxe5 {[%clk 0:02:21]}  Bxe3 {[%clk 0:02:45]} 21. Qxe3 {[%clk 0:02:21]}  d4 {[%clk 0:02:46]} 22. Qg3 {[%clk 0:02:11]}  dxc3 {[%clk 0:02:42]} 23. Qxc3 {[%clk 0:02:11]}  Qh4+ {[%clk 0:02:36]} 24. g3 {[%clk 0:01:59]}  Qe4 {[%clk 0:02:35]} 25. Kf2 {[%clk 0:01:54]}  Rxe5 {[%clk 0:02:13]} 26. Bf3 {[%clk 0:01:49]}  Qf5 {[%clk 0:01:55]} 27. Rhe1 {[%clk 0:01:43]}  Rxe1 {[%clk 0:01:46]} 28. Rxe1 {[%clk 0:01:40]}  Bb7 {[%clk 0:01:39]} 29. Re3 {[%clk 0:01:37]}  Rc8 {[%clk 0:01:31]} 30. Qb3 {[%clk 0:01:23]}  Rc2+ {[%clk 0:01:24]} 31. Re2 {[%clk 0:01:18]}  Rxe2+ {[%clk 0:00:37]} 32. Kxe2 {[%clk 0:01:17]}  Bxf3+ {[%clk 0:00:34]} 33. Qxf3 {[%clk 0:01:16]}  Qc2+ {[%clk 0:00:33]} 34. Ke3 {[%clk 0:01:03]}  Qxb2 {[%clk 0:00:31]} 35. Qa8+ {[%clk 0:01:03]}  Kg7 {[%clk 0:00:31]} 36. Qxa6 {[%clk 0:01:03]}  Qxh2 {[%clk 0:00:30]} 37. Kf3 {[%clk 0:00:44]}  h5 {[%clk 0:00:24]} 38. a4 {[%clk 0:00:43]}  Qh1+ {[%clk 0:00:21]} 39. Ke3 {[%clk 0:00:41]}  Qg2 {[%clk 0:00:20]} 40. Qd6 {[%clk 0:00:37]}  Qg1+ {[%clk 0:00:15]} 41. Ke2 {[%clk 0:00:38]}  Qg2+ {[%clk 0:00:14]} 42. Ke3 {[%clk 0:00:38]}  Qg1+ {[%clk 0:00:14]} 43. Kd2 {[%clk 0:00:36]}  Qf2+ {[%clk 0:00:12]} 44. Kc3 {[%clk 0:00:35]}  Qf3+ {[%clk 0:00:11]} 45. Kc4 {[%clk 0:00:32]}  Qe4+ {[%clk 0:00:10]} 46. Qd4+ {[%clk 0:00:32]}  Qxd4+ {[%clk 0:00:10]} 47. Kxd4 {[%clk 0:00:33]}  g5 {[%clk 0:00:07]} 48. a5 {[%clk 0:00:33]}  h4 {[%clk 0:00:05]} 49. gxh4 {[%clk 0:00:31]}  gxh4 {[%clk 0:00:06]} 50. Ke3 {[%clk 0:00:30]}  h3 {[%clk 0:00:05]} 51. Kf2 {[%clk 0:00:30]} 1-0


[Site "https://www.chess.com"]

[Event "Titled Tuesday Blitz April 4 Late 2023"]
[White "Melikhov, Evgeny V."]
[Black "Korkmaz, Necmettin"]
[WhiteFideId "4122046"]
[BlackFideId "6303285"]
[WhiteElo "2158"]
[BlackElo "2097"]
[Result "0-1"]
[Round "08"]
[TimeControl "180+2"]
[Date "2023.04.04"]
[WhiteClock "0:00:01"]
[BlackClock "0:01:03"]

1. d4 {[%clk 0:03:00]}  d5 {[%clk 0:02:55]} 2. c4 {[%clk 0:03:00]}  e5 {[%clk 0:02:53]} 3. dxe5 {[%clk 0:03:00]}  d4 {[%clk 0:02:53]} 4. Nf3 {[%clk 0:03:00]}  Nc6 {[%clk 0:02:54]} 5. g3 {[%clk 0:03:01]}  Be6 {[%clk 0:02:53]} 6. b3 {[%clk 0:02:50]}  Qd7 {[%clk 0:02:52]} 7. Bg2 {[%clk 0:02:46]}  Bh3 {[%clk 0:02:49]} 8. e6 {[%clk 0:02:42]}  Bxe6 {[%clk 0:02:47]} 9. O-O {[%clk 0:02:38]}  O-O-O {[%clk 0:02:43]} 10. Bb2 {[%clk 0:02:30]}  Bh3 {[%clk 0:02:42]} 11. Nbd2 {[%clk 0:02:17]}  Bxg2 {[%clk 0:02:42]} 12. Kxg2 {[%clk 0:02:17]}  h5 {[%clk 0:02:38]} 13. h4 {[%clk 0:02:17]}  Nge7 {[%clk 0:02:37]} 14. Ne4 {[%clk 0:02:04]}  Ng6 {[%clk 0:02:36]} 15. a3 {[%clk 0:01:32]}  Qg4 {[%clk 0:02:35]} 16. Neg5 {[%clk 0:01:27]}  d3 {[%clk 0:02:28]} 17. e3 {[%clk 0:01:14]}  Rd7 {[%clk 0:02:18]} 18. b4 {[%clk 0:01:10]}  f6 {[%clk 0:02:14]} 19. Nh3 {[%clk 0:01:06]}  Nce5 {[%clk 0:02:09]} 20. Nxe5 {[%clk 0:00:59]}  Nxe5 {[%clk 0:01:45]} 21. Qxg4 {[%clk 0:00:46]}  hxg4 {[%clk 0:01:40]} 22. Nf4 {[%clk 0:00:43]}  Nxc4 {[%clk 0:01:40]} 23. Bd4 {[%clk 0:00:40]}  d2 {[%clk 0:01:35]} 24. Rfd1 {[%clk 0:00:35]}  Bd6 {[%clk 0:01:34]} 25. Ne2 {[%clk 0:00:21]}  Be5 {[%clk 0:01:31]} 26. Ra2 {[%clk 0:00:14]}  Bxd4 {[%clk 0:01:29]} 27. Nxd4 {[%clk 0:00:14]}  Re8 {[%clk 0:01:29]} 28. Kg1 {[%clk 0:00:11]}  a6 {[%clk 0:01:24]} 29. a4 {[%clk 0:00:11]}  c6 {[%clk 0:01:22]} 30. b5 {[%clk 0:00:09]}  c5 {[%clk 0:01:15]} 31. Nb3 {[%clk 0:00:09]}  b6 {[%clk 0:01:11]} 32. bxa6 {[%clk 0:00:08]}  Rd3 {[%clk 0:01:09]} 33. Nxd2 {[%clk 0:00:05]}  Red8 {[%clk 0:01:06]} 34. Rc1 {[%clk 0:00:02]}  Nxd2 {[%clk 0:01:04]} 35. a5 {[%clk 0:00:01]}  Nf3+ {[%clk 0:01:03]} 36. Kg2 {[%clk 0:00:01]}  Rd1 {[%clk 0:01:03]} 0-1


[Site "https://www.chess.com"]

[Event "Titled Tuesday Blitz April 4 Late 2023"]
[White "marik_spb"]
[Black "Koutlas, Nikolaos"]
[BlackFideId "25827138"]
[WhiteElo "2422"]
[BlackElo "2215"]
[Result "1-0"]
[Round "08"]
[TimeControl "180+2"]
[Date "2023.04.04"]
[WhiteClock "0:00:42"]
[BlackClock "0:00:08"]

1. d4 {[%clk 0:03:00]}  Nf6 {[%clk 0:02:57]} 2. c4 {[%clk 0:03:00]}  e6 {[%clk 0:02:58]} 3. Nf3 {[%clk 0:03:00]}  b6 {[%clk 0:02:56]} 4. Nc3 {[%clk 0:02:58]}  Bb7 {[%clk 0:02:57]} 5. Bg5 {[%clk 0:02:57]}  Be7 {[%clk 0:02:53]} 6. Bxf6 {[%clk 0:02:52]}  Bxf6 {[%clk 0:02:53]} 7. e4 {[%clk 0:02:53]}  d6 {[%clk 0:02:53]} 8. Be2 {[%clk 0:02:44]}  O-O {[%clk 0:02:53]} 9. O-O {[%clk 0:02:44]}  c5 {[%clk 0:02:52]} 10. e5 {[%clk 0:02:42]}  Be7 {[%clk 0:02:52]} 11. dxc5 {[%clk 0:02:37]}  dxe5 {[%clk 0:02:40]} 12. Qxd8 {[%clk 0:02:27]}  Rxd8 {[%clk 0:02:39]} 13. cxb6 {[%clk 0:02:26]}  axb6 {[%clk 0:02:17]} 14. Nxe5 {[%clk 0:02:21]}  Rd2 {[%clk 0:02:16]} 15. Rab1 {[%clk 0:01:57]}  f6 {[%clk 0:02:09]} 16. Bf3 {[%clk 0:01:52]}  Ra5 {[%clk 0:01:31]} 17. Bxb7 {[%clk 0:01:40]}  Rxe5 {[%clk 0:01:29]} 18. Rfd1 {[%clk 0:01:39]}  Rxd1+ {[%clk 0:01:24]} 19. Rxd1 {[%clk 0:01:40]}  Nd7 {[%clk 0:01:21]} 20. f4 {[%clk 0:01:36]}  Bc5+ {[%clk 0:01:18]} 21. Kf1 {[%clk 0:01:32]}  Rf5 {[%clk 0:01:11]} 22. Rxd7 {[%clk 0:01:30]}  Rxf4+ {[%clk 0:01:12]} 23. Ke1 {[%clk 0:01:29]}  Rxc4 {[%clk 0:01:11]} 24. Kd2 {[%clk 0:01:15]}  Rf4 {[%clk 0:00:52]} 25. Ne4 {[%clk 0:01:08]}  Bf8 {[%clk 0:00:43]} 26. Ke3 {[%clk 0:01:06]}  Rf1 {[%clk 0:00:43]} 27. Rc7 {[%clk 0:01:03]}  h6 {[%clk 0:00:41]} 28. Bc8 {[%clk 0:01:02]}  e5 {[%clk 0:00:32]} 29. Be6+ {[%clk 0:01:02]}  Kh7 {[%clk 0:00:31]} 30. Ke2 {[%clk 0:01:00]}  Rf4 {[%clk 0:00:31]} 31. Kd3 {[%clk 0:00:56]}  f5 {[%clk 0:00:23]} 32. Ng3 {[%clk 0:00:49]}  Kg6 {[%clk 0:00:18]} 33. Bxf5+ {[%clk 0:00:49]}  Kg5 {[%clk 0:00:15]} 34. Be4 {[%clk 0:00:48]}  Rf2 {[%clk 0:00:13]} 35. Rc6 {[%clk 0:00:47]}  Bc5 {[%clk 0:00:13]} 36. Rg6+ {[%clk 0:00:46]}  Kh4 {[%clk 0:00:11]} 37. Nf5+ {[%clk 0:00:47]}  Kh5 {[%clk 0:00:11]} 38. Nxg7+ {[%clk 0:00:44]}  Kh4 {[%clk 0:00:10]} 39. Nf5+ {[%clk 0:00:44]}  Kh5 {[%clk 0:00:11]} 40. Rxh6+ {[%clk 0:00:44]}  Kg5 {[%clk 0:00:11]} 41. h4+ {[%clk 0:00:45]}  Kf4 {[%clk 0:00:09]} 42. g3+ {[%clk 0:00:44]}  Kg4 {[%clk 0:00:10]} 43. Rg6+ {[%clk 0:00:44]}  Kh3 {[%clk 0:00:09]} 44. h5 {[%clk 0:00:43]}  Rxb2 {[%clk 0:00:08]} 45. h6 {[%clk 0:00:43]}  Rxa2 {[%clk 0:00:08]} 46. h7 {[%clk 0:00:42]}  Ra3+ {[%clk 0:00:08]} 47. Kc2 {[%clk 0:00:41]}  Ra2+ {[%clk 0:00:07]} 48. Kb3 {[%clk 0:00:41]}  Ra3+ {[%clk 0:00:08]} 49. Kb2 {[%clk 0:00:42]} 1-0


[Site "https://www.chess.com"]

[Event "Titled Tuesday Blitz April 4 Late 2023"]
[White "Averjanov, Alexey"]
[Black "Liu, Casper"]
[WhiteFideId "14109867"]
[BlackFideId "1454153"]
[WhiteElo "2626"]
[BlackElo "2221"]
[Result "1-0"]
[Round "08"]
[TimeControl "180+2"]
[Date "2023.04.04"]
[WhiteClock "0:00:45"]
[BlackClock "0:00:01"]

1. d4 {[%clk 0:03:00]}  Nc6 {[%clk 0:02:20]} 2. Nf3 {[%clk 0:02:57]}  d6 {[%clk 0:02:20]} 3. c4 {[%clk 0:02:56]}  Bg4 {[%clk 0:02:17]} 4. Nbd2 {[%clk 0:02:54]}  e5 {[%clk 0:02:16]} 5. d5 {[%clk 0:02:54]}  Nce7 {[%clk 0:02:16]} 6. h3 {[%clk 0:02:54]}  Bh5 {[%clk 0:02:14]} 7. Qb3 {[%clk 0:02:54]}  Qc8 {[%clk 0:02:11]} 8. g4 {[%clk 0:02:51]}  Bg6 {[%clk 0:02:11]} 9. Nh4 {[%clk 0:02:51]}  h5 {[%clk 0:02:07]} 10. Nxg6 {[%clk 0:02:50]}  Nxg6 {[%clk 0:02:07]} 11. g5 {[%clk 0:02:49]}  h4 {[%clk 0:02:02]} 12. Rg1 {[%clk 0:02:47]}  N8e7 {[%clk 0:01:48]} 13. Rg4 {[%clk 0:02:46]}  c6 {[%clk 0:01:17]} 14. Bg2 {[%clk 0:02:42]}  Nf4 {[%clk 0:01:03]} 15. e4 {[%clk 0:02:33]}  Neg6 {[%clk 0:00:39]} 16. Bf1 {[%clk 0:02:29]}  Be7 {[%clk 0:00:34]} 17. Nf3 {[%clk 0:02:18]}  f5 {[%clk 0:00:29]} 18. exf5 {[%clk 0:02:15]}  Qxf5 {[%clk 0:00:28]} 19. dxc6 {[%clk 0:02:12]}  bxc6 {[%clk 0:00:26]} 20. Bd2 {[%clk 0:02:10]}  Qe4+ {[%clk 0:00:26]} 21. Qe3 {[%clk 0:02:09]}  Qc2 {[%clk 0:00:22]} 22. Bc3 {[%clk 0:02:03]}  O-O {[%clk 0:00:19]} 23. Rc1 {[%clk 0:02:02]}  Qf5 {[%clk 0:00:17]} 24. Rd1 {[%clk 0:01:48]}  Rad8 {[%clk 0:00:16]} 25. Bb4 {[%clk 0:01:43]}  d5 {[%clk 0:00:16]} 26. Bxe7 {[%clk 0:01:41]}  Nxe7 {[%clk 0:00:16]} 27. Nxh4 {[%clk 0:01:39]}  Qc2 {[%clk 0:00:13]} 28. Qd2 {[%clk 0:01:23]}  Qh7 {[%clk 0:00:13]} 29. c5 {[%clk 0:01:16]}  Qe4+ {[%clk 0:00:10]} 30. Qe3 {[%clk 0:01:16]}  Qb4+ {[%clk 0:00:11]} 31. Rd2 {[%clk 0:01:12]}  d4 {[%clk 0:00:09]} 32. Qxe5 {[%clk 0:01:11]}  Rfe8 {[%clk 0:00:09]} 33. Kd1 {[%clk 0:01:09]}  Ned5 {[%clk 0:00:08]} 34. Qxd4 {[%clk 0:01:01]}  Qb8 {[%clk 0:00:03]} 35. Nf5 {[%clk 0:01:00]}  Ne3+ {[%clk 0:00:02]} 36. fxe3 {[%clk 0:00:57]}  Rxd4 {[%clk 0:00:02]} 37. Rxd4 {[%clk 0:00:57]}  Nd5 {[%clk 0:00:03]} 38. Bc4 {[%clk 0:00:55]}  Qxb2 {[%clk 0:00:02]} 39. e4 {[%clk 0:00:49]}  Qa1+ {[%clk 0:00:02]} 40. Kc2 {[%clk 0:00:47]}  Qe1 {[%clk 0:00:01]} 41. exd5 {[%clk 0:00:45]}  Rb8 {[%clk 0:00:01]} 42. dxc6+ {[%clk 0:00:45]}  Kh7 {[%clk 0:00:02]} 43. g6+ {[%clk 0:00:44]}  Kh8 {[%clk 0:00:02]} 44. Rh4+ {[%clk 0:00:44]}  Qxh4 {[%clk 0:00:01]} 45. Nxh4 {[%clk 0:00:45]} 1-0


[Site "https://www.chess.com"]